bitfinex/quotes_SOLUSD_20241020
["timestamp","ask_amount","ask_price","bid_price","bid_amount"]
[1729457687913,0.2,162.72,162.65,2.84062222]
[1729457688115,0.2,162.72,162.66,2.84062222]
[1729457688411,0.1,162.72,162.67,2.84062222]
[1729457688608,0.1,162.72,162.61,36.4393]
[1729457688609,0.2,162.72,162.68,2.84062222]
[1729457688812,0.2,162.72,162.69,2.84062222]
[1729457689035,0.2,162.72,162.7,2.84062222]
[1729457689238,0.2,162.72,162.71,2.84062222]
[1729457689409,0.2,162.69,162.62,2.83778232]
[1729457689729,0.2,162.69,162.58,1.06824636]
[1729457689730,0.2,162.69,162.63,2.83860966]
[1729457690036,0.2,162.69,162.64,2.83860966]
[1729457690238,0.2,162.69,162.65,2.83860966]
[1729457690442,0.2,162.69,162.66,2.83860966]
[1729457690617,0.2,162.69,162.67,2.83860966]
[1729457690820,0.2,162.69,162.68,2.83860966]
[1729457691048,0.2,162.69,162.58,21.06824636]
[1729457691210,0.2,162.69,162.59,2.838708]
[1729457691414,0.2,162.69,162.6,2.838708]
[1729457691728,0.1,162.69,162.61,2.838708]
[1729457692045,0.1,162.69,162.62,2.838708]
[1729457692217,0.1,162.69,162.63,2.838708]
[1729457692417,0.1,162.69,162.64,2.838708]
[1729457692724,0.1,162.69,162.65,2.838708]
[1729457692930,0.1,162.69,162.66,2.838708]
[1729457693116,0.1,162.69,162.67,2.838708]
[1729457693328,0.1,162.69,162.68,2.838708]
[1729457694016,0.1,162.69,162.59,2.838708]
[1729457694217,0.1,162.69,162.6,2.838708]
[1729457694519,0.1,162.69,162.58,21.06824636]
[1729457694721,0.1,162.69,162.59,2.8380664]
[1729457695018,0.1,162.69,162.6,2.8380664]
[1729457695234,0.1,162.69,162.61,2.8380664]
[1729457695431,0.1,162.69,162.58,21.06824636]
[1729457695432,0.1,162.69,162.62,2.8380664]
[1729457695633,0.1,162.69,162.63,2.8380664]
[1729457695919,0.1,162.69,162.64,2.8380664]
[1729457696119,0.1,162.69,162.65,2.8380664]
[1729457696348,0.1,162.69,162.66,2.8380664]
[1729457696648,21.521,162.74,162.67,2.8380664]
[1729457696818,21.521,162.74,162.68,2.8380664]
[1729457697018,21.521,162.74,162.69,2.8380664]
[1729457697245,21.521,162.74,162.7,2.8380664]
[1729457697443,0.1,162.73,162.71,2.8380664]
[1729457697652,0.1,162.73,162.72,2.8380664]
[1729457697945,0.1,162.73,162.63,2.8380664]
[1729457698152,0.1,162.73,162.64,2.8380664]
[1729457698542,21.521,162.74,162.64,2.8380664]
[1729457698843,0.1,162.73,162.65,2.8380664]
[1729457699021,0.1,162.73,162.66,2.8380664]
[1729457699221,0.1,162.73,162.67,2.8380664]
[1729457699423,0.1,162.73,162.62,20.0]
[1729457699424,0.1,162.73,162.68,2.8380664]
[1729457699655,0.1,162.73,162.69,2.8380664]
[1729457699942,0.1,162.73,162.7,2.8380664]
[1729457700154,0.1,162.73,162.71,2.8380664]
[1729457700346,0.1,162.73,162.72,2.8380664]
[1729457700524,0.1,162.73,162.63,2.8380664]
[1729457700724,0.1,162.73,162.64,2.8380664]
[1729457700948,0.1,162.71,162.65,2.8380664]
[1729457701128,0.1,162.7,162.66,2.8380664]
[1729457701331,0.1,162.7,162.58,1.06824636]
[1729457701638,0.1,162.7,162.59,2.83746379]
[1729457701826,0.2,162.7,162.6,2.83746379]
[1729457702033,0.2,162.7,162.61,2.83746379]
[1729457702256,0.1,162.69,162.62,2.83746379]
[1729457702557,0.1,162.69,162.63,2.83746379]
[1729457702763,0.1,162.69,162.64,2.83746379]
[1729457702963,0.82904662,162.72,162.65,2.83746379]
[1729457702964,0.1,162.71,162.65,2.83746379]
[1729457703136,0.1,162.72,162.66,2.83746379]
[1729457703137,0.2,162.72,162.66,2.83746379]
[1729457703333,0.2,162.72,162.67,2.83746379]
[1729457703655,0.2,162.72,162.68,2.83746379]
[1729457703846,0.2,162.72,162.69,2.83746379]
[1729457704044,0.2,162.72,162.59,21.22928585]
[1729457704353,0.1,162.73,162.61,20.0]
[1729457704557,0.1,162.73,162.62,2.83879149]
[1729457704755,0.1,162.73,162.63,2.83879149]
[1729457704936,0.1,162.73,162.64,2.83879149]
[1729457705125,0.1,162.73,162.65,2.83879149]
[1729457705326,0.1,162.73,162.66,2.83879149]
[1729457705541,0.1,162.73,162.67,2.83879149]
[1729457705742,0.1,162.73,162.68,2.83879149]
[1729457706056,0.1,162.73,162.69,2.83879149]
[1729457706263,0.1,162.73,162.7,2.83879149]
[1729457706463,0.2,162.73,162.71,2.83879149]
[1729457706636,0.2,162.73,162.61,21.22904425]
[1729457706637,0.2,162.73,162.72,2.83879149]
[1729457706964,0.2,162.73,162.62,2.83879149]
[1729457707142,0.2,162.73,162.63,2.83879149]
[1729457707466,0.2,162.73,162.64,2.83879149]
[1729457707763,0.2,162.73,162.65,2.83879149]
[1729457707947,0.2,162.73,162.66,2.83879149]
[1729457708162,0.2,162.73,162.67,2.83879149]
[1729457708334,21.421,162.74,162.68,2.83879149]
[1729457708538,6.41191155,162.77,162.69,4.06780769]
[1729457708763,0.1,162.76,162.7,2.83879149]
[1729457708942,0.1,162.76,162.71,2.83879149]
[1729457709138,0.1,162.76,162.72,2.83879149]
[1729457709333,0.1,162.76,162.73,2.83879149]
[1729457709563,0.1,162.76,162.74,2.83879149]
[1729457709863,0.1,162.76,162.75,2.83879149]
[1729457710163,0.1,162.76,162.7,4.83644602]
[1729457710164,0.1,162.76,162.67,4.83644602]
[1729457710467,0.1,162.76,162.68,7.66901779]
[1729457710667,0.1,162.76,162.69,7.66901779]
[1729457710870,0.1,162.76,162.7,7.66901779]
[1729457711049,0.1,162.76,162.71,7.66901779]
[1729457711358,0.1,162.76,162.72,2.83240485]
[1729457711565,0.1,162.76,162.67,4.83412602]
[1729457711768,0.1,162.76,162.65,16.3449]
[1729457711769,0.1,162.76,162.73,2.83237299]
[1729457711955,0.1,162.76,162.74,2.83237299]
[1729457712163,0.1,162.76,162.75,2.83237299]
[1729457712346,0.1,162.76,162.68,24.83410516]
[1729457712347,0.1,162.76,162.69,2.83237299]
[1729457712664,0.1,162.76,162.7,7.66647815]
[1729457712965,0.1,162.76,162.71,7.66647815]
[1729457713263,0.1,162.76,162.72,2.83237299]
[1729457713569,0.1,162.76,162.73,2.83237299]
[1729457713763,0.1,162.76,162.74,2.83237299]
[1729457714075,0.1,162.76,162.75,2.83237299]
[1729457714639,0.1,162.76,162.72,2.83237299]
[1729457714857,0.1,162.76,162.73,2.83237299]
[1729457715061,0.1,162.76,162.74,2.83123846]
[1729457715251,0.1,162.76,162.75,2.83123846]
[1729457716137,0.1,162.76,162.7,7.66328727]
[1729457716342,0.1,162.76,162.71,7.66328727]
[1729457716564,0.1,162.76,162.72,7.66328727]
[1729457716754,0.1,162.76,162.73,2.83123846]
[1729457717063,0.1,162.76,162.74,2.83123846]
[1729457717369,0.1,162.76,162.75,2.83123846]
[1729457718160,0.1,162.76,162.7,7.66328727]
[1729457718361,0.1,162.76,162.71,7.66328727]
[1729457718663,0.1,162.76,162.66,20.0]
[1729457718862,0.1,162.76,162.72,4.82885278]
[1729457719168,0.1,162.76,162.73,2.82800862]
[1729457719345,0.1,162.76,162.74,2.82800862]
[1729457719659,0.1,162.76,162.75,2.82800862]
[1729457720176,0.1,162.76,162.68,7.6559803]
[1729457720177,0.1,162.75,162.68,7.6559803]
[1729457720388,0.2,162.75,162.69,7.65612567]
[1729457720679,0.2,162.75,162.7,7.65612567]
[1729457720864,0.1,162.74,162.71,2.82727289]
[1729457721176,0.1,162.73,162.72,2.82727289]
[1729457722165,0.1,162.73,162.72,2.82763044]
[1729457722361,0.1,162.72,162.63,5.21151705]
[1729457722558,0.1,162.72,162.67,4.82838419]
[1729457722865,0.1,162.72,162.68,2.82778345]
[1729457723175,0.1,162.72,162.69,7.65647371]
[1729457723362,0.1,162.72,162.7,2.82778345]
[1729457723546,0.1,162.72,162.71,2.82778345]
[1729457723745,0.1,162.72,162.69,2.82778345]
[1729457723941,0.1,162.72,162.7,2.82798381]
[1729457724153,0.1,162.76,162.71,2.82798381]
[1729457724350,0.1,162.75,162.72,2.82798381]
[1729457724656,0.1,162.76,162.73,2.82798381]
[1729457724854,0.1,162.76,162.74,2.82798381]
[1729457725067,0.1,162.76,162.75,2.82798381]
[1729457725273,0.1,162.76,162.71,2.82798381]
[1729457725470,0.1,162.76,162.72,2.82798381]
[1729457725765,0.1,162.76,162.73,2.82798381]
[1729457725963,0.1,162.76,162.7,4.82869026]
[1729457725964,0.1,162.76,162.74,2.82653954]
[1729457726160,0.1,162.76,162.75,2.82653954]
[1729457727056,0.1,162.76,162.69,7.6552298]
[1729457727270,0.1,162.76,162.7,2.82653954]
[1729457727570,0.1,162.76,162.71,2.82653954]
[1729457727774,0.1,162.76,162.72,2.82653954]
[1729457727964,0.1,162.76,162.73,2.82653954]
[1729457728271,0.1,162.76,162.74,2.82653954]
[1729457728472,0.1,162.75,162.69,4.82869026]
[1729457728674,0.1,162.75,162.67,10.19827392]
[1729457728675,0.1,162.75,162.7,2.82628086]
[1729457728852,0.1,162.75,162.71,2.82628086]
[1729457729052,0.2,162.73,162.72,2.82628086]
[1729457729364,0.2,162.73,162.67,4.82838419]
[1729457729365,0.1,162.69,162.67,4.82838419]
[1729457729669,0.1,162.69,162.68,2.82892343]
[1729457730272,0.2,162.69,162.64,7.65761369]
[1729457730460,0.1,162.69,162.65,2.82892343]
[1729457730670,0.2,162.69,162.66,2.82892343]
[1729457730851,0.2,162.69,162.67,2.82892343]
[1729457731045,0.2,162.69,162.68,2.82892343]
[1729457731654,0.2,162.67,162.65,2.83102841]
[1729457731863,0.2,162.67,162.66,2.83103091]
[1729457732058,0.82904662,162.7,162.59,4.82869026]
[1729457732059,0.1,162.61,162.59,4.82869026]
[1729457732255,0.1,162.6,162.58,4.83315104]
[1729457732458,0.1,162.6,162.59,2.83399712]
[1729457732663,0.2,162.6,162.59,2.83399712]
[1729457733448,0.1,162.58,162.56,4.83549356]
[1729457733649,0.1,162.58,162.57,2.83249398]
[1729457733957,0.2,162.58,162.57,2.83249398]
[1729457736044,0.2,162.58,162.55,2.83249398]
[1729457736277,0.1,162.59,162.56,2.83249398]
[1729457736455,0.1,162.59,162.54,0.6211676]
[1729457736456,0.1,162.59,162.57,2.83249398]
[1729457736656,0.2,162.62,162.58,2.83249398]
[1729457736863,0.1,162.62,162.59,2.83249398]
[1729457737071,0.1,162.62,162.6,2.83249398]
[1729457737373,0.1,162.62,162.61,2.83249398]
[1729457738181,0.1,162.62,162.56,2.83249398]
[1729457738469,0.1,162.62,162.54,5.45394736]
[1729457738470,0.1,162.63,162.57,2.83249398]
[1729457738678,0.1,162.64,162.58,2.83249398]
[1729457738878,0.1,162.65,162.59,2.83249398]
[1729457739174,0.1,162.64,162.6,2.83249398]
[1729457739367,0.1,162.64,162.61,2.83249398]
[1729457739690,0.1,162.66,162.55,35.3179]
[1729457739691,0.1,162.65,162.62,2.82526767]
[1729457739862,0.1,162.64,162.56,2.82526767]
[1729457740063,0.1,162.64,162.57,2.82526767]
[1729457740255,0.1,162.64,162.55,35.3179]
[1729457740460,0.1,162.64,162.58,2.8251884]
[1729457740653,0.1,162.64,162.59,2.8251884]
[1729457740957,0.1,162.64,162.55,35.3179]
[1729457740958,0.1,162.62,162.6,2.8251884]
[1729457741167,0.2,162.62,162.61,2.8251884]
[1729457741553,0.1,162.62,162.57,2.8251884]
[1729457741758,0.1,162.62,162.58,2.8251884]
[1729457741961,0.1,162.62,162.59,2.8251884]
[1729457742259,0.1,162.62,162.6,2.8251884]
[1729457742455,0.1,162.63,162.61,2.8251884]
[1729457742764,0.1,162.63,162.62,2.8251884]
[1729457743074,0.1,162.64,162.57,2.8251884]
[1729457743284,0.1,162.64,162.58,2.8251884]
[1729457743482,0.1,162.64,162.59,2.8251884]
[1729457743779,0.1,162.63,162.6,2.8251884]
[1729457743981,0.1,162.64,162.56,4.81943129]
[1729457744175,0.1,162.64,162.57,2.82502702]
[1729457744368,0.1,162.64,162.58,2.82487961]
[1729457744561,0.1,162.64,162.59,2.82487961]
[1729457744771,0.1,162.65,162.6,2.82487961]
[1729457744772,0.1,162.63,162.6,2.82487961]
[1729457745068,0.1,162.62,162.61,2.82487961]
[1729457745273,0.1,162.64,162.61,2.82487961]
[1729457745487,0.1,162.66,162.62,2.82487961]
[1729457745789,0.1,162.62,162.58,4.818496]
[1729457745954,0.1,162.62,162.59,2.82461235]
[1729457746278,0.1,162.64,162.6,2.82461235]
[1729457746479,0.1,162.64,162.61,2.82461235]
[1729457746773,16.4927,162.67,162.62,2.82461235]
[1729457746978,0.1,162.66,162.63,2.82461235]
[1729457747183,0.1,162.66,162.64,2.82461235]
[1729457747366,0.2,162.65,162.56,9.63792729]
[1729457747573,0.2,162.65,162.57,2.82343568]
[1729457747873,0.2,162.65,162.58,2.82343568]
[1729457748080,0.2,162.65,162.59,2.82343568]
[1729457748265,0.2,162.65,162.6,2.82343568]
[1729457748591,0.2,162.65,162.61,2.82343568]
[1729457748759,0.2,162.65,162.62,2.82343568]
[1729457749082,0.2,162.65,162.63,2.82343568]
[1729457749285,0.2,162.65,162.64,2.82343568]
[1729457749459,0.1,162.65,162.57,2.82343568]
[1729457749654,0.1,162.65,162.58,2.82343568]
[1729457749863,0.1,162.65,162.59,2.82343568]
[1729457750078,0.1,162.65,162.6,2.82343568]
[1729457750275,0.1,162.65,162.61,2.82343568]
[1729457750484,0.1,162.64,162.62,2.82343568]
[1729457750787,0.1,162.64,162.63,2.82343568]
[1729457751180,0.2,162.64,162.58,2.82343568]
[1729457751369,0.1,162.62,162.59,2.8239402]
[1729457751682,0.1,162.62,162.6,2.82402502]
[1729457751864,0.1,162.62,162.61,2.82402502]
[1729457752673,0.1,162.62,162.56,2.82402502]
[1729457752872,0.1,162.61,162.57,2.82402502]
[1729457753062,0.1,162.61,162.54,0.6211676]
[1729457753063,0.1,162.61,162.58,2.82402502]
[1729457753262,0.1,162.61,162.59,2.82402502]
[1729457753475,0.1,162.61,162.6,2.82402502]
[1729457753679,0.1,162.61,162.55,2.82402502]
[1729457753864,0.1,162.61,162.56,2.82402502]
[1729457754066,0.1,162.62,162.57,2.82402502]
[1729457754382,0.2,162.62,162.58,2.82402502]
[1729457754588,0.2,162.62,162.59,2.82402502]
[1729457754781,0.1,162.62,162.6,2.82402502]
[1729457755088,0.2,162.62,162.61,2.82402502]
[1729457755284,0.2,162.62,162.55,2.82402502]
[1729457755492,0.2,162.62,162.54,0.6211676]
[1729457755493,0.1,162.62,162.56,2.82402502]
[1729457755793,0.1,162.66,162.57,2.8226666]
[1729457755983,16.3927,162.67,162.58,2.8226666]
[1729457756172,16.3927,162.67,162.59,2.8226666]
[1729457756485,0.1,162.68,162.6,2.8226666]
[1729457756685,0.1,162.68,162.61,2.8226666]
[1729457756871,0.1,162.68,162.58,16.2125]
[1729457756872,0.1,162.68,162.62,2.8226666]
[1729457757184,0.1,162.68,162.63,2.8226666]
[1729457757389,0.1,162.68,162.64,2.8226666]
[1729457757568,0.1,162.68,162.6,4.81525064]
[1729457757891,0.1,162.68,162.61,2.82055098]
[1729457758069,0.1,162.68,162.62,2.82055098]
[1729457758270,0.2,162.7,162.63,2.82055098]
[1729457758468,0.2,162.7,162.64,2.82055098]
[1729457758667,0.2,162.7,162.65,2.82055098]
[1729457758985,0.1,162.69,162.66,0.32055098]
[1729457759165,0.1,162.7,162.6,4.80906628]
[1729457759368,0.1,162.69,162.59,24.80906628]
[1729457759569,0.1,162.69,162.59,22.30906628]
[1729457760494,0.1,162.68,162.59,22.30906628]
[1729457760675,0.2,162.68,162.59,22.30906628]
[1729457760871,0.1,162.67,162.59,22.30906628]
[1729457761070,0.1,162.65,162.59,4.80906628]
[1729457761379,0.2,162.64,162.55,4.80906628]
[1729457761579,0.1,162.63,162.55,4.80906628]
[1729457761980,0.2,162.64,162.54,21.64273388]
[1729457762770,0.1,162.63,162.54,21.64273388]
[1729457763982,0.1,162.64,162.54,21.64273388]
[1729457764193,0.2,162.63,162.55,4.80906628]
[1729457764488,0.2,162.63,162.54,21.64273388]
[1729457765093,0.1,162.63,162.54,21.64273388]
[1729457765296,0.2,162.63,162.54,16.8336676]
[1729457765476,0.2,162.63,162.55,4.82160856]
[1729457765673,0.1,162.63,162.54,21.65527616]
[1729457765982,0.1,162.63,162.55,4.82189984]
[1729457766992,0.2,162.63,162.55,4.82189984]
[1729457768396,0.2,162.63,162.56,4.82189984]
[1729457768692,22.6063,162.65,162.55,4.82189984]
[1729457768872,0.1,162.67,162.56,4.82189984]
[1729457769068,22.8276,162.69,162.56,19.91803292]
[1729457769267,0.1,162.68,162.57,24.82189984]
[1729457769470,0.1,162.68,162.58,4.82189984]
[1729457769694,0.1,162.68,162.59,4.82189984]
[1729457769875,0.1,162.67,162.6,4.82189984]
[1729457770071,0.1,162.66,162.58,4.82189984]
[1729457770382,0.1,162.62,162.59,4.82189984]
[1729457770591,0.1,162.61,162.55,4.82189984]
[1729457770887,6.1484,162.65,162.54,16.8336676]
[1729457770888,2.17744662,162.65,162.56,7.64491521]
[1729457771076,20.0,162.68,162.57,2.82301537]
[1729457771394,20.0,162.68,162.59,6.1503]
[1729457771606,20.0,162.68,162.6,2.82301537]
[1729457772071,6.1485,162.65,162.6,2.82301537]
[1729457772688,22.6276,162.66,162.57,6.1509]
[1729457772907,16.0394,162.64,162.58,2.82247335]
[1729457773070,16.0394,162.64,162.56,6.1515]
[1729457773393,16.0394,162.64,162.57,2.82295519]
[1729457773771,6.1496,162.62,162.57,2.82295519]
[1729457775389,6.1499,162.61,162.57,2.82295519]
[1729457775591,6.1499,162.61,162.56,6.1515]
[1729457775905,6.1499,162.61,162.57,2.82236227]
[1729457779678,6.1499,162.61,162.56,6.1515]
[1729457781892,6.1504,162.59,162.54,0.6211676]
[1729457782405,6.1509,162.58,162.54,0.6211676]
[1729457786080,6.1512,162.57,162.54,0.6211676]
[1729457787482,22.6276,162.6,162.56,6.1515]
[1729457787888,22.6276,162.6,162.54,0.6211676]
[1729457788088,22.6276,162.6,162.58,6.1507]
[1729457788827,22.6276,162.6,162.59,6.1504]
[1729457789427,21.5909,162.64,162.6,6.15]
[1729457790486,27.7394,162.64,162.59,6.1503]
[1729457790682,27.7394,162.64,162.54,0.6211676]
[1729457790683,21.5909,162.64,162.54,0.6211676]
[1729457790905,21.5909,162.64,162.54,16.3267676]
[1729457791104,21.5909,162.64,162.61,6.1495]
[1729457791983,21.5909,162.64,162.6,6.15]
[1729457793289,21.5909,162.64,162.59,6.1504]
[1729457794898,27.7395,162.64,162.59,6.1504]
[1729457796213,27.6764278,162.64,162.59,6.1504]
[1729457798188,15.304,162.68,162.54,16.3267676]
[1729457798505,15.304,162.68,162.64,6.1484]
[1729457798884,21.71373752,162.73,162.58,21.8916]
[1729457799111,15.304,162.73,162.59,2.92155717]
[1729457799280,15.304,162.73,162.6,2.82155717]
[1729457799495,6.0840278,162.68,162.62,6.1489]
[1729457799691,6.0840278,162.68,162.63,6.1487]
[1729457801213,20.0,162.72,162.58,21.7916]
[1729457801397,6.147,162.68,162.63,6.1488]
[1729457802911,6.0839278,162.68,162.63,6.1488]
[1729457803613,6.1467,162.69,162.64,6.1485]
[1729457804806,6.1463,162.7,162.65,6.1481]
[1729457805004,15.304,162.73,162.58,21.7916]
[1729457805209,15.304,162.73,162.59,2.92178176]
[1729457805425,15.304,162.73,162.69,6.1464]
[1729457805728,15.304,162.73,162.59,0.1]
[1729457805916,21.4492,162.73,162.68,6.1469]
[1729457807015,21.3861278,162.73,162.68,6.1469]
[1729457807408,21.3861278,162.73,162.69,6.1466]
[1729457810411,21.3230556,162.73,162.69,6.1466]
[1729457811930,15.1778556,162.73,162.58,29.4269321]
[1729457812222,6.1467,162.69,162.64,6.1483]
[1729457812722,15.1778556,162.73,162.65,6.1481]
[1729457812723,6.1463,162.7,162.65,6.1481]
[1729457813312,6.1472,162.68,162.62,6.1489]
[1729457813630,20.1,162.72,162.58,21.7916]
[1729457813807,6.0834278,162.7,162.59,2.8212545]
[1729457814007,15.1778556,162.73,162.59,3.0212545]
[1729457814330,22.7684,162.77,162.72,6.1454]
[1729457815007,16.6248,162.77,162.74,6.1446]
[1729457815519,22.7672,162.81,162.75,6.1441]
[1729457816034,6.1425,162.8,162.75,6.1441]
[1729457816528,6.1425,162.8,162.66,6.1203]
[1729457816529,6.1444,162.75,162.7,6.1462]
[1729457816907,0.2,162.8,162.65,16.6011]
[1729457817230,6.144,162.76,162.71,6.1458]
[1729457817805,6.0809278,162.76,162.71,6.1458]
[1729457819541,20.1,162.8,162.65,16.6011]
[1729457819719,6.1428,162.79,162.72,6.1452]
[1729457819921,20.1,162.8,162.72,6.1452]
[1729457820154,6.1437,162.77,162.72,6.1452]
[1729457821425,6.0806278,162.77,162.72,6.1452]
[1729457821610,6.145,162.74,162.68,6.1467]
[1729457821819,6.1455,162.73,162.68,6.1467]
[1729457823520,6.1609,162.76,162.71,6.1456]
[1729457823822,12.3051,162.76,162.62,6.1203]
[1729457824033,12.3051,162.76,162.63,2.81591054]
[1729457824430,12.3051,162.76,162.72,6.1455]
[1729457824823,12.2420278,162.76,162.72,6.1455]
[1729457826327,6.1425,162.8,162.75,6.144]
[1729457826818,22.767,162.81,162.76,6.1437]
[1729457827239,6.1426,162.8,162.75,6.1443]
[1729457827555,16.7248,162.81,162.72,6.1452]
[1729457827727,6.1437,162.77,162.72,6.1452]
[1729457828047,6.1462,162.71,162.61,21.2199]
[1729457828234,20.0,162.72,162.64,6.1484]
[1729457828427,6.0835278,162.7,162.65,6.1481]
[1729457828628,22.6515,162.73,162.67,6.147]
[1729457829046,6.1456,162.72,162.67,6.147]
[1729457829639,16.5061,162.73,162.61,15.142]
[1729457829855,16.5061,162.73,162.62,2.81492134]
[1729457830050,29.2712,162.77,162.71,6.1457]
[1729457830253,29.2712,162.77,162.62,2.91492134]
[1729457830254,23.1272,162.77,162.66,6.0779]
[1729457830460,23.2272,162.81,162.73,6.1448]
[1729457830634,6.1434,162.78,162.73,6.1448]
[1729457832957,23.1272,162.81,162.67,23.776884]
[1729457832958,29.2696,162.81,162.67,23.776884]
[1729457833169,6.1426,162.8,162.74,6.1444]
[1729457833347,23.1272,162.81,162.67,23.776884]
[1729457833550,6.1425,162.8,162.75,6.1443]
[1729457833750,23.2272,162.81,162.67,23.776884]
[1729457833962,23.1272,162.81,162.73,6.1451]
[1729457834259,6.143,162.79,162.73,6.1451]
[1729457834458,23.1272,162.81,162.69,15.142]
[1729457834759,23.1272,162.81,162.76,6.1437]
[1729457835268,23.1272,162.81,162.72,23.776884]
[1729457835460,23.1272,162.81,162.76,6.1437]
[1729457835768,23.1272,162.81,162.76,6.1438]
[1729457836960,29.53810818,162.85,162.72,23.776884]
[1729457837253,6.1415,162.83,162.77,6.1433]
[1729457837569,6.1419,162.82,162.77,6.1433]
[1729457837861,6.1409,162.84,162.79,6.1428]
[1729457839965,23.1272,162.85,162.81,6.142]
[1729457840156,6.1399,162.87,162.82,6.1416]
[1729457841242,23.1272,162.89,162.83,23.776884]
[1729457841554,29.2663,162.89,162.84,6.1409]
[1729457843367,23.1272,162.89,162.84,6.1409]
[1729457843744,6.1394,162.88,162.82,6.1416]
[1729457843962,23.1272,162.89,162.82,6.1416]
[1729457844164,6.1398,162.87,162.82,6.1416]
[1729457844675,23.1272,162.89,162.78,23.776884]
[1729457844857,6.1395,162.88,162.78,23.776884]
[1729457845059,6.1395,162.88,162.82,6.1414]
[1729457845260,6.1395,162.88,162.78,23.776884]
[1729457845774,29.2663,162.89,162.84,6.1409]
[1729457847666,15.3449,162.93,162.8,23.776884]
[1729457847667,23.0865,162.93,162.8,23.776884]
[1729457847867,6.138,162.92,162.8,23.776884]
[1729457848368,6.138,162.92,162.87,6.1398]
[1729457848671,0.1,162.92,162.84,6.1407]
[1729457848874,6.1395,162.88,162.83,6.1413]
[1729457849665,6.1387,162.9,162.84,6.1409]
[1729457850266,0.1,162.91,162.84,6.1409]
[1729457850480,6.1392,162.89,162.84,6.1409]
[1729457853556,6.1383,162.91,162.86,6.1401]
[1729457854260,6.1383,162.91,162.8,23.776884]
[1729457854466,6.1383,162.91,162.87,6.1398]
[1729457854758,6.138,162.92,162.87,6.1398]
[1729457858588,6.1394,162.89,162.83,6.141]
[1729457858758,6.1394,162.88,162.83,6.1411]
[1729457859071,6.1385,162.91,162.86,6.1402]
[1729457861881,23.0865,162.93,162.77,15.142]
[1729457862085,6.1381,162.92,162.87,6.1395]
[1729457868273,6.1388,162.9,162.85,6.1404]
[1729457868572,0.1,162.92,162.77,15.142]
[1729457868778,6.1399,162.87,162.77,15.142]
[1729457868973,6.1404,162.86,162.77,15.142]
[1729457869171,0.1,162.88,162.77,15.142]
[1729457869486,21.647,162.87,162.8,6.1423]
[1729457869884,6.1402,162.86,162.77,15.142]
[1729457870089,6.1402,162.86,162.81,6.1421]
[1729457870973,21.647,162.87,162.82,6.1414]
[1729457871176,27.787,162.87,162.82,6.1414]
[1729457871573,21.647,162.87,162.83,6.1412]
[1729457872370,6.1391,162.89,162.84,6.1408]
[1729457873890,27.7854,162.91,162.86,6.1401]
[1729457876888,21.647,162.91,162.78,23.776884]
[1729457877098,6.139,162.9,162.84,6.1406]
[1729457877577,6.139,162.9,162.85,6.1405]
[1729457877993,27.7854,162.91,162.86,6.1399]
[1729457880385,27.7854,162.91,162.79,20.0]
[1729457880593,21.647,162.91,162.87,6.1397]
[1729457881313,21.647,162.91,162.86,6.1401]
[1729457881314,27.7856,162.91,162.86,6.1401]
[1729457882496,27.7856,162.91,162.87,6.1398]
[1729457885405,21.647,162.91,162.87,6.1398]
[1729457887506,21.647,162.91,162.88,6.1394]
[1729457890101,21.647,162.91,162.8,23.776884]